bitfinex/quotes_ETHUSD_20230116
["timestamp","ask_amount","ask_price","bid_price","bid_amount"]
[1673828769660,7.42564107,1546.4,1546.1,1.66160688]
[1673828769915,7.42564107,1546.4,1546.1,1.82776757]
[1673828770342,7.42536107,1546.5,1546.1,1.82776757]
[1673828770678,7.42536107,1546.5,1546.2,1.322]
[1673828771049,7.42536107,1546.5,1546.1,1.82776757]
[1673828771462,6.46651,1546.5,1546.1,1.82776757]
[1673828771670,13.89187107,1546.5,1546.1,1.82776757]
[1673828772121,12.93302,1546.5,1546.1,1.82776757]
[1673828772607,12.93302,1546.5,1546.2,0.18277676]
[1673828772825,0.95885107,1546.7,1546.3,1.60417568]
[1673828773196,0.95885107,1546.8,1546.4,1.60417568]
[1673828773517,0.95885107,1546.8,1546.3,1.61108516]
[1673828773842,0.95885107,1546.8,1546.4,1.76520397]
[1673828773998,0.95885107,1546.8,1546.5,1.334]
[1673828774344,0.95885107,1546.8,1546.1,6.41319972]
[1673828774345,14.43213,1546.6,1546.1,6.41319972]
[1673828774502,20.89826,1546.6,1546.2,1.60432584]
[1673828774716,19.39826,1546.6,1546.2,1.60432584]
[1673828774975,7.42428107,1546.7,1546.2,3.36139371]
[1673828775142,7.42428107,1546.7,1546.3,1.334]
[1673828775785,6.46543,1546.7,1546.3,1.334]
[1673828775983,7.42428107,1546.7,1546.3,1.334]
[1673828776194,12.93086,1546.7,1546.3,1.334]
[1673828776672,13.88971107,1546.7,1546.2,1.334]
[1673828776823,14.37481107,1546.7,1546.2,1.334]
[1673828777487,14.37481107,1546.7,1546.2,1.488]
[1673828777696,7.90938107,1546.7,1546.2,1.488]
[1673828777934,6.95053,1546.7,1546.2,1.488]
[1673828778300,6.95053,1546.7,1546.3,0.1488]
[1673828778774,7.42380107,1546.8,1546.3,0.1488]
[1673828778775,8.86573424,1546.8,1546.3,0.1488]
[1673828778928,13.88875107,1546.9,1546.6,1.502]
[1673828779140,20.35362107,1546.9,1546.6,1.502]
[1673828779781,20.35362107,1546.9,1546.5,1.502]
[1673828779993,13.88867107,1546.9,1546.5,1.6522]
[1673828780843,15.33060424,1546.9,1546.3,0.1488]
[1673828781049,6.46558,1546.7,1546.3,0.1488]
[1673828781260,7.96558,1546.7,1546.3,0.1488]
[1673828781468,6.46558,1546.7,1546.3,0.1488]
[1673828783555,6.46558,1546.7,1546.3,1.6508]
[1673828783774,7.42393107,1546.8,1546.4,0.16508]
[1673828784007,6.46508,1546.8,1546.4,0.16508]
[1673828784428,6.46508,1546.8,1546.4,1.66208]
[1673828785628,7.90861107,1546.9,1546.5,1.494]
[1673828785846,0.4851,1546.9,1546.8,1.502]
[1673828786271,6.46421,1547.0,1546.8,1.502]
[1673828786272,6.94921,1547.0,1546.8,1.502]
[1673828786611,0.95885107,1547.1,1546.9,1.502]
[1673828786932,7.4658961,1547.2,1546.9,1.502]
[1673828787121,0.485,1547.1,1546.8,1.6522]
[1673828787331,14.4144761,1547.2,1546.8,1.6522]
[1673828787949,7.9508961,1547.2,1546.8,1.6522]
[1673828788261,7.9508961,1547.2,1546.9,0.16522]
[1673828788448,7.9508961,1547.2,1546.9,1.66722]
[1673828788449,0.52848503,1547.2,1546.9,1.66722]
[1673828788663,0.52848503,1547.2,1547.0,1.494]
[1673828788925,0.04348503,1547.2,1547.0,1.494]
[1673828789972,0.04348503,1547.2,1547.1,1.502]
[1673828790141,0.04348503,1547.2,1547.1,1.64847277]
[1673828790359,0.04348503,1547.2,1547.1,0.1502]
[1673828790585,0.04348503,1547.2,1546.9,1.66722]
[1673828792460,0.04348503,1547.2,1547.1,1.502]
[1673828793742,6.51021989,1547.5,1547.1,1.502]
[1673828793955,6.51021989,1547.5,1547.2,1.494]
[1673828794366,6.51021989,1547.5,1547.3,1.502]
[1673828795196,0.04803989,1547.5,1547.3,1.6522]
[1673828795411,0.04803989,1547.5,1547.4,1.498]
[1673828796312,0.04803989,1547.5,1547.3,1.6522]
[1673828797120,6.51006989,1547.5,1547.2,1.502]
[1673828797306,12.97211989,1547.5,1547.0,1.502]
[1673828799928,1.5,1547.4,1547.0,1.502]
[1673828800134,1.5,1547.4,1546.9,1.502]
[1673828800368,19.87411,1547.3,1546.8,1.502]
[1673828801242,13.41104,1547.3,1546.8,1.502]
[1673828801429,13.41104,1547.3,1546.9,1.496]
[1673828802052,6.94797,1547.3,1546.9,1.496]
[1673828802927,6.94797,1547.3,1546.8,7.96693]
[1673828804507,6.94797,1547.3,1546.9,1.502]
[1673828804667,13.41104,1547.3,1546.7,13.0501]
[1673828804878,19.87411,1547.3,1546.6,1.502]
[1673828805106,12.92783,1547.1,1546.6,4.502]
[1673828806038,6.94805,1547.3,1546.9,1.502]
[1673828806249,6.94805,1547.3,1546.9,1.6522]
[1673828807288,13.4112,1547.3,1546.7,1.502]
[1673828807590,13.4112,1547.3,1546.6,11.61383918]
[1673828808870,13.4112,1547.3,1546.6,10.9675]
[1673828811081,13.4112,1547.3,1546.7,0.01322377]
[1673828811423,13.4112,1547.3,1546.7,2.61329615]
[1673828811636,13.4112,1547.3,1546.8,1.497]
[1673828812479,13.4112,1547.3,1546.8,7.96189]
[1673828813943,6.94805,1547.3,1546.8,7.96189]
[1673828814154,13.4103,1547.4,1547.0,1.501]
[1673828814371,13.4103,1547.4,1547.0,1.6511]
[1673828814772,13.4103,1547.4,1547.0,1.66432121]
[1673828815208,6.94744,1547.4,1547.0,1.62432121]
[1673828815843,0.4849,1547.4,1547.0,1.62432121]
[1673828816060,0.4849,1547.4,1547.1,0.16243212]
[1673828816499,21.65733989,1547.5,1547.1,1.66443212]
[1673828816711,21.65733989,1547.5,1547.3,1.5]
[1673828816922,0.04803989,1547.5,1547.2,1.502]
[1673828818207,0.04803989,1547.5,1547.3,0.23]
[1673828818717,0.04803989,1547.5,1547.2,0.23]
[1673828818878,6.51007989,1547.5,1547.2,0.23]
[1673828819090,6.51007989,1547.5,1547.2,0.41944321]
[1673828819498,0.04803989,1547.5,1547.2,0.41944321]
[1673828819762,0.04803989,1547.5,1547.4,1.502]
[1673828819977,0.03516435,1547.6,1547.4,1.502]
[1673828821430,0.03516435,1547.6,1547.5,1.732]
[1673828821648,0.03516435,1547.6,1547.5,2.851636]
[1673828823452,0.03516435,1547.6,1547.5,9.313666]
[1673828823615,0.03516435,1547.6,1547.5,10.813666]
[1673828823826,0.03516435,1547.6,1547.5,13.90358889]
[1673828824041,0.03516435,1547.6,1547.5,17.01328889]
[1673828824230,0.03752872,1547.7,1547.6,1.5]
[1673828824438,0.03752872,1547.7,1547.6,18.55842514]
[1673828824754,0.03752872,1547.7,1547.6,10.46211999]
[1673828825618,0.03752872,1547.7,1547.6,18.5264698]
[1673828825804,0.03752872,1547.7,1547.6,16.92372999]
[1673828826860,0.03752872,1547.7,1547.6,4.00050999]
[1673828827072,0.03752872,1547.7,1547.6,0.30297409]
[1673828827479,0.03752872,1547.7,1547.6,0.07297409]
[1673828828388,0.03752872,1547.7,1547.6,2.31697409]
[1673828828905,0.03752872,1547.7,1547.6,4.14968263]
[1673828829307,0.03752872,1547.7,1547.6,7.14968263]
[1673828829482,0.03752872,1547.7,1547.6,8.11112549]
[1673828830005,0.03752872,1547.7,1547.6,19.43163695]
[1673828830642,0.64086626,1547.7,1547.6,19.43163695]
[1673828830851,0.60334626,1547.7,1547.6,26.01645691]
[1673828831066,0.03752872,1547.9,1547.8,0.037]
[1673828831335,0.03868112,1548.3,1547.8,16.8431716]
[1673828831479,0.03868112,1548.3,1548.0,6.774]
[1673828831798,1.15853572,1548.4,1548.2,2.999]
[1673828832010,1.15853572,1548.4,1548.3,8.13330025]
[1673828832272,1.15853572,1548.4,1548.3,9.00963943]
[1673828832633,1.06413572,1548.4,1548.3,10.50963943]
[1673828832849,1.06413572,1548.4,1548.3,9.86330025]
[1673828833054,0.44123572,1548.4,1548.3,8.2614]
[1673828833325,0.44123572,1548.4,1548.3,6.7614]
[1673828833489,0.44123572,1548.4,1548.3,5.2734]
[1673828833697,0.44123572,1548.4,1548.3,5.0299]
[1673828834855,0.44123572,1548.4,1548.3,2.0299]
[1673828836334,0.43735635,1548.4,1548.3,2.0299]
[1673828836530,0.43735635,1548.4,1548.3,3.5299]
[1673828836736,0.43735635,1548.4,1548.3,5.0289]
[1673828837157,0.43735635,1548.4,1548.3,3.5289]
[1673828838157,0.43735635,1548.4,1548.3,9.98759]
[1673828839188,0.43735635,1548.4,1548.3,16.44628]
[1673828839996,0.04385855,1548.7,1548.6,0.43735635]
[1673828840198,0.04385855,1548.7,1548.6,1.93535635]
[1673828845474,0.04385855,1548.7,1548.6,3.43535635]
[1673828845669,0.04385855,1548.7,1548.6,1.93535635]
[1673828846777,0.04385855,1548.7,1548.6,0.43735635]
[1673828846983,0.04385855,1548.7,1548.6,1.27654098]
[1673828848140,0.04385855,1548.7,1548.6,0.43735635]
[1673828848935,6.50087855,1548.7,1548.6,0.43735635]
[1673828849105,15.61039855,1548.7,1548.6,0.43735635]
[1673828849739,14.12139855,1548.7,1548.6,0.43735635]
[1673828853643,6.98537855,1548.7,1548.6,0.43735635]
[1673828853829,6.50087855,1548.7,1548.6,0.43735635]
[1673828854045,0.04385855,1548.7,1548.6,0.43735635]
[1673828858037,6.50087855,1548.7,1548.6,0.43735635]
[1673828859800,12.95789855,1548.7,1548.6,0.43735635]
[1673828860014,12.95789855,1548.7,1547.9,0.96281765]
[1673828860289,19.37496,1548.4,1547.8,0.13443755]
[1673828860484,19.85956,1548.4,1547.8,0.13443755]
[1673828861125,31.38876,1548.4,1547.8,0.13443755]
[1673828861438,31.38876,1548.4,1547.8,0.4981572]
[1673828861980,1.498,1548.3,1547.8,0.13443755]
[1673828862282,16.00776,1548.3,1547.8,0.13443755]
[1673828862503,16.00776,1548.3,1547.8,1.63043755]
[1673828862657,22.46682,1548.3,1547.8,1.63043755]
[1673828863347,22.46682,1548.3,1547.8,0.13443755]
[1673828863665,23.96482,1548.3,1547.8,0.13443755]
[1673828865873,0.4847,1548.2,1547.8,0.13443755]
[1673828866060,12.91922,1548.1,1547.8,0.13443755]
[1673828868031,6.45961,1548.1,1547.8,0.13443755]
[1673828868246,6.45961,1548.1,1547.8,0.10443755]
[1673828868920,19.86345,1548.1,1547.8,0.10443755]
[1673828869087,13.40384,1548.1,1547.8,0.10443755]
[1673828869501,6.94423,1548.1,1547.8,0.10443755]
[1673828870390,0.4847,1548.1,1547.8,0.10443755]
[1673828870606,0.4847,1548.1,1547.8,0.76145469]
[1673828871565,0.4847,1548.1,1547.8,0.10443755]
[1673828872549,6.94424,1548.1,1547.8,0.10443755]
[1673828873505,13.40378,1548.1,1547.8,0.10443755]
[1673828874183,13.35378,1548.1,1547.8,0.10443755]
[1673828874354,14.84678,1548.1,1547.8,0.10443755]
[1673828876157,0.4347,1548.1,1547.8,0.10443755]
[1673828876362,6.45934,1548.2,1547.8,0.10443755]
[1673828877423,0.4847,1548.1,1547.8,0.10443755]
[1673828877844,13.40346,1548.2,1547.8,0.10443755]
[1673828878338,14.90146,1548.2,1547.8,0.10443755]
[1673828878957,1.488,1548.1,1547.8,0.10443755]
[1673828879169,21.36452,1548.0,1547.8,0.10443755]
[1673828879432,1.502,1547.9,1547.8,0.10443755]
[1673828879751,14.90752,1547.9,1547.8,0.10443755]
[1673828880649,17.90752,1547.9,1547.8,0.10443755]
[1673828892782,17.42272,1547.9,1547.8,0.10443755]
[1673828893519,9.93710378,1547.9,1547.8,0.10443755]
[1673828893746,0.47674378,1547.9,1547.8,0.10443755]
[1673828894520,6.93710378,1547.9,1547.8,0.10443755]
[1673828895288,13.39746378,1547.9,1547.8,0.10443755]
[1673828897289,6.93710378,1547.9,1547.8,0.10443755]
[1673828897475,0.47674378,1547.9,1547.8,0.10443755]
[1673828898883,0.47674378,1547.9,1547.8,0.10210069]
[1673828899773,0.95885107,1548.3,1547.8,4.92472516]
[1673828900144,0.95885107,1548.4,1547.9,1.73]
[1673828900361,0.95885107,1548.4,1548.0,0.173]
[1673828900681,0.95885107,1548.4,1548.1,0.23]
[1673828900888,0.95885107,1548.4,1548.1,1.497]
[1673828901063,7.41713107,1548.4,1548.1,1.497]
[1673828902505,0.95885107,1548.4,1548.1,1.497]
[1673828904029,36.14129424,1548.5,1548.1,1.497]
[1673828904184,29.68318424,1548.5,1548.2,0.3797]
[1673828904388,2.40078424,1548.5,1548.2,0.3797]
[1673828904646,0.95885107,1548.5,1548.3,1.502]
[1673828904846,0.95885107,1548.5,1548.2,0.3797]
[1673828905257,25.03953424,1548.6,1548.2,0.3797]
[1673828907079,0.95885107,1548.5,1548.2,0.3797]
[1673828907291,6.4579,1548.5,1548.2,0.23]
[1673828907485,0.4846,1548.4,1548.1,0.23]
[1673828907695,1.9846,1548.4,1548.1,0.23]
[1673828907905,1.5,1548.4,1548.0,0.23]
[1673828908222,1.5,1548.4,1548.0,0.4032]
[1673828908586,6.4584,1548.4,1548.0,0.4032]
[1673828908890,1.5,1548.3,1548.0,0.4032]
[1673828909039,12.9178,1548.3,1548.0,0.23]
[1673828909255,12.9178,1548.3,1547.9,0.23]
[1673828909827,13.4024,1548.3,1547.9,0.23]
[1673828910231,14.36125107,1548.3,1547.8,1.60410069]
[1673828910797,14.36125107,1548.3,1547.8,0.10210069]
[1673828910953,2.46085107,1548.2,1547.8,0.10210069]
[1673828911166,19.86353,1548.1,1547.8,0.10210069]
[1673828911473,1.489,1548.0,1547.8,0.10210069]
[1673828911679,21.36588,1547.9,1547.8,0.10210069]
[1673828911896,20.88108,1547.9,1547.8,0.10210069]
[1673828912133,19.38108,1547.9,1547.8,0.10210069]
[1673828913629,19.86588,1547.9,1547.8,0.10210069]
[1673828915087,20.82473107,1547.9,1547.8,0.10210069]
[1673828915393,22.86588,1547.9,1547.8,0.10210069]
[1673828918931,24.36788,1547.9,1547.8,0.10210069]
[1673828919126,25.32673107,1547.9,1547.8,0.10210069]
[1673828919675,24.36788,1547.9,1547.8,0.10210069]
[1673828920088,24.36788,1547.9,1547.8,0.09966568]
[1673828922498,25.32673107,1547.9,1547.8,0.09966568]
[1673828922719,28.69488786,1547.9,1547.8,5.68e-06]
[1673828922921,28.69488786,1547.9,1547.6,0.0045939]
[1673828922922,1.5,1547.8,1547.6,0.0045939]
[1673828923133,37.4738127,1547.7,1547.6,0.0045939]
[1673828923347,37.4738127,1547.7,1547.5,0.13601914]
[1673828923348,1.5,1547.6,1547.5,0.13601914]
[1673828923591,1.5,1547.6,1547.0,0.13443755]
[1673828923592,27.34944,1547.5,1547.0,0.13443755]
[1673828923802,1.498,1547.4,1547.0,0.13443755]
[1673828924018,19.53865,1547.3,1547.0,0.13443755]
[1673828924171,3.0,1547.2,1547.0,0.13443755]
[1673828924383,4.978,1547.2,1547.0,0.13443755]
[1673828924686,19.3911,1547.1,1547.0,0.13443755]
[1673828925069,22.3911,1547.1,1547.0,0.13443755]
[1673828928503,22.8761,1547.1,1547.0,0.13443755]
[1673828932794,22.3911,1547.1,1547.0,0.13443755]
[1673828933030,15.9274,1547.1,1547.0,0.13443755]
[1673828933244,16.4124,1547.1,1547.0,0.13443755]
[1673828933560,17.4294,1547.1,1547.0,0.13443755]
[1673828933769,1.5,1547.0,1546.7,0.14974134]
[1673828933991,19.39485,1546.8,1546.7,0.14974134]
[1673828934412,22.39485,1546.8,1546.7,0.14974134]
[1673828935664,22.87995,1546.8,1546.7,0.14974134]
[1673828936516,24.38195,1546.8,1546.7,0.14974134]
[1673828936679,25.88095,1546.8,1546.7,0.14974134]
[1673828937629,1.5,1546.7,1546.2,0.14461106]
[1673828937838,26.3492,1546.6,1546.2,0.14461106]
[1673828938253,3.0,1546.5,1546.2,0.14461106]
[1673828938460,19.39989,1546.4,1546.2,0.14461106]
[1673828938727,0.4853,1546.3,1546.2,0.14461106]
[1673828938947,13.4194,1546.3,1546.2,0.14461106]
[1673828939096,16.4194,1546.3,1546.2,0.14461106]
[1673828945681,17.9084,1546.3,1546.2,0.14461106]
[1673828947162,25.87152,1546.1,1546.0,0.15699323]
[1673828947344,30.35852,1546.1,1546.0,0.15699323]
[1673828947951,38.42662,1546.1,1546.0,0.15699323]
[1673828951099,41.42162,1546.1,1545.8,0.15699323]
[1673828951266,28.86588,1545.9,1545.4,0.15732284]
[1673828951479,25.87856,1545.7,1545.4,0.15732284]
[1673828952001,27.36956,1545.7,1545.4,0.15732284]
[1673828952391,5.987,1545.6,1545.4,0.15732284]
[1673828952618,25.88156,1545.5,1545.4,0.15732284]
[1673828952805,30.37256,1545.5,1545.4,0.15732284]
[1673828953001,20.69879983,1545.5,1545.4,0.15732284]
[1673828953562,7.75801983,1545.5,1545.4,0.15732284]
[1673828954100,4.75801983,1545.5,1545.4,0.15732284]
[1673828954526,11.22840983,1545.5,1545.4,0.15732284]
[1673828955560,12.73040983,1545.5,1545.4,0.15732284]
[1673828955773,15.73040983,1545.5,1545.4,0.15732284]
[1673828955944,15.73040983,1545.5,1545.3,0.17933156]
[1673828955945,19.71590983,1545.5,1545.3,0.17933156]
[1673828956156,19.71590983,1545.5,1544.6,18.83]
[1673828956157,6.4745,1545.4,1544.3,0.95799338]
[1673828956418,19.41657,1545.1,1544.5,1.502]
[1673828956620,3.0,1545.0,1544.5,1.502]
[1673828956887,15.94546,1545.0,1544.6,0.1502]
[1673828957142,1.5,1544.9,1544.6,0.1502]
[1673828957357,1.5,1544.9,1544.5,1.502]
[1673828957530,6.47341,1544.8,1544.5,1.502]
[1673828958178,3.0,1545.0,1544.5,1.502]
[1673828958179,9.47261,1545.0,1544.5,1.502]
[1673828958415,9.47261,1545.0,1544.8,2.56913327]
[1673828958601,15.94522,1545.0,1544.8,2.56913327]
[1673828960564,3.0,1545.0,1544.8,2.56913327]
[1673828961243,6.95754,1545.2,1544.8,2.8260466]
[1673828961244,6.47194,1545.2,1544.8,2.8260466]
[1673828961405,9.47155,1545.3,1545.0,1.502]
[1673828962162,9.47155,1545.3,1544.8,2.8260466]
[1673828962163,1.5,1545.2,1544.8,2.56913327]
[1673828962424,9.47215,1545.1,1544.8,2.56913327]
[1673828962731,3.0,1545.1,1544.8,2.8260466]
[1673828962903,9.4721,1545.1,1544.8,2.8260466]
[1673828964397,3.0,1545.1,1544.8,2.8260466]
[1673828964606,3.0,1545.1,1544.9,1.498]
[1673828964822,6.47193,1545.2,1544.9,1.498]
[1673828964989,6.47193,1545.2,1544.9,1.93040466]
[1673828965209,0.4855,1545.4,1545.1,1.488]
[1673828965535,0.4855,1545.4,1545.2,1.497]
[1673828965745,12.94181,1545.4,1544.9,0.43240466]
[1673828966130,1.5,1545.3,1544.9,0.43240466]
[1673828966397,14.44288,1545.3,1544.9,0.43240466]
[1673828967181,14.44288,1545.3,1544.8,2.56913327]
[1673828967449,14.44288,1545.3,1544.8,4.07113327]
[1673828970244,15.94188,1545.4,1544.9,1.502]
[1673828970474,9.47081,1545.4,1544.9,1.502]
[1673828970662,24.91355,1545.6,1545.1,1.497]
[1673828970871,24.91355,1545.6,1545.0,1.8762]
[1673828970872,3.0,1545.7,1545.3,1.502]
[1673828971098,36.00831,1545.9,1545.3,1.502]
[1673828971294,36.49371,1545.9,1545.5,1.502]
[1673828971504,36.49371,1545.9,1545.3,1.502]
[1673828971505,36.00831,1545.9,1545.3,1.502]
[1673828971750,6.46973,1545.7,1545.3,1.502]
[1673828971962,8.45479,1545.8,1545.3,1.502]
[1673828972116,30.0247,1545.9,1545.4,1.501]
[1673828972543,36.49352,1545.9,1545.4,1.501]
[1673828972857,36.49352,1545.9,1545.4,2.46165189]
[1673828972858,42.96234,1545.9,1545.4,2.46165189]
[1673828973440,10.7243,1545.9,1545.7,1.498]
[1673828973748,6.46847,1546.0,1545.8,1.502]
[1673828973749,0.4853,1546.0,1545.8,1.502]
[1673828973975,52.428,1546.2,1545.8,1.502]
[1673828974163,52.428,1546.2,1545.6,1.496]
[1673828974382,53.916,1546.2,1545.4,11.4082]
[1673828974718,6.47011,1545.6,1545.0,4.496]
[1673828974864,6.47011,1545.6,1545.0,1.496]
[1673828975076,7.97011,1545.6,1545.0,1.496]
[1673828975306,6.47011,1545.6,1545.2,1.498]
[1673828975509,6.46974,1545.7,1545.2,1.498]
[1673828976037,40.40821,1545.8,1545.4,1.502]
[1673828976253,37.40821,1545.8,1545.4,1.502]
[1673828977017,30.9388,1545.8,1545.4,1.502]
[1673828977240,9.95445,1545.9,1545.5,0.1502]
[1673828977459,0.4854,1545.9,1545.5,1.6482]
[1673828977753,16.98957,1546.0,1545.5,1.6482]
[1673828977754,17.47487,1546.0,1545.5,1.6482]
[1673828977926,17.47487,1546.0,1545.5,8.11854]
[1673828978141,23.94334,1546.0,1545.5,1.6482]
[1673828978392,23.94334,1546.0,1545.5,1.498]
[1673828980392,17.47487,1546.0,1545.5,1.498]
[1673828980544,19.1203,1546.1,1545.8,1.502]
[1673828980905,20.50358,1546.2,1545.8,1.502]
[1673828981274,26.97136,1546.2,1545.6,1.727]
[1673828981703,26.97136,1546.2,1545.6,1.497]
[1673828981912,12.93691,1546.0,1545.6,1.497]
[1673828983824,6.4684,1546.0,1545.6,1.497]
[1673828985861,12.9368,1546.0,1545.4,14.99273]
[1673828986172,19.40805,1545.8,1545.3,1.502]
[1673828986408,19.40805,1545.8,1545.3,4.502]
[1673828986594,19.40805,1545.8,1545.3,1.502]
[1673828987170,37.11385,1545.9,1545.4,1.502]
[1673828987379,37.11385,1545.9,1545.4,1.8024]
[1673828988070,30.645,1545.9,1545.6,1.502]
[1673828988431,10.8855,1545.9,1545.6,1.502]
[1673828991068,23.82307,1545.9,1545.6,1.502]
[1673828991436,23.82307,1545.9,1545.4,1.7974]
[1673828991640,23.82307,1545.9,1545.4,1.497]
[1673828993613,23.82307,1545.9,1545.4,1.447]
[1673828993824,10.8855,1545.9,1545.4,1.447]
[1673828994063,10.8855,1545.9,1545.6,1.502]
[1673828994892,0.4854,1545.9,1545.6,1.502]
[1673828995103,0.4853,1546.0,1545.8,1.494]
[1673828996527,0.4853,1546.0,1545.9,1.488]
[1673828996709,0.4853,1546.1,1545.9,1.488]
[1673828997375,10.8253,1546.2,1545.9,1.488]
[1673828998652,1.5,1546.1,1545.8,1.502]
[1673828998865,1.5,1546.1,1545.6,18.69597]
[1673828998866,7.96812,1546.1,1545.6,18.69597]
[1673828999107,14.43624,1546.1,1545.5,1.502]
[1673828999323,0.4853,1546.0,1545.5,1.502]
[1673828999539,6.46893,1545.9,1545.5,1.502]
[1673829001052,6.46893,1545.9,1545.5,1.50494722]
[1673829002945,9.95476,1545.8,1545.2,32.76199338]
[1673829003157,12.93928,1545.7,1545.2,3.21232124]
[1673829003411,12.93928,1545.7,1545.2,1.494]
[1673829004187,1.5,1545.6,1545.2,1.494]
[1673829004500,12.94096,1545.5,1545.0,3.21432124]
[1673829004712,23.60286,1545.5,1545.1,1.502]
[1673829004879,10.6619,1545.5,1545.2,1.6522]
[1673829005441,9.95581,1545.6,1545.4,1.502]
[1673829005442,0.4855,1545.6,1545.4,1.502]
[1673829005601,0.31624322,1545.8,1545.4,1.502]
[1673829006122,0.80164322,1545.8,1545.4,1.502]
[1673829006334,0.31624322,1545.8,1545.4,8.36900934]
[1673829006579,8.28540322,1545.8,1545.4,1.89819934]
[1673829006769,14.75456322,1545.8,1545.3,1.502]
[1673829007175,3.0,1545.6,1545.2,0.95799338]
[1673829007393,3.0,1545.4,1545.0,2.67631462]
[1673829007598,13.42821,1545.3,1544.9,2.39437233]
[1673829007963,6.9569,1545.3,1545.0,0.95799338]
[1673829008185,0.4856,1545.3,1545.1,1.05379272]
[1673829008349,0.4855,1545.4,1545.2,1.502]
[1673829008544,0.4855,1545.4,1545.3,1.44664933]
[1673829009226,30.1494,1545.5,1545.3,1.44664933]
[1673829009593,0.4855,1545.5,1545.3,1.44664933]
[1673829010123,6.47044,1545.5,1545.3,1.44664933]
[1673829011010,0.4855,1545.6,1545.3,4.29730698]
[1673829011228,39.82766,1545.7,1545.4,3.90664271]
[1673829011229,30.8432,1545.7,1545.4,3.90664271]
[1673829011376,30.3578,1545.7,1545.5,1.44664933]
[1673829012120,6.4696,1545.7,1545.5,1.44664933]
[1673829012329,6.4696,1545.7,1545.4,2.45999338]
[1673829012540,14.4392,1545.7,1545.3,2.85065765]
[1673829012749,14.4392,1545.7,1545.4,1.44810184]
[1673829013590,12.9392,1545.7,1545.4,1.44810184]
[1673829015922,15.9392,1545.7,1545.4,1.44810184]
[1673829016532,15.9353134,1545.7,1545.4,1.44810184]
[1673829017064,37.94448322,1545.8,1545.5,1.501]
[1673829017273,37.94448322,1545.8,1545.6,1.44796829]
[1673829017504,37.94448322,1545.8,1545.5,1.74689934]
[1673829017712,37.94448322,1545.8,1545.5,2.70489272]
[1673829017923,37.94448322,1545.8,1545.5,1.74689934]
[1673829018322,37.94448322,1545.8,1545.5,1.501]
[1673829018794,0.31624322,1545.8,1545.6,2.94595488]
[1673829019008,0.31624322,1545.8,1545.6,1.498]
[1673829019318,0.31624322,1545.8,1545.7,1.44816158]
[1673829019528,0.31624322,1545.8,1545.7,1.83857708]
[1673829020105,0.31624322,1545.8,1545.7,3.34057708]
[1673829020353,0.31624322,1545.8,1545.7,4.52857046]
[1673829020524,0.4853,1546.2,1545.8,1.62816111]
[1673829020734,29.58944458,1546.3,1546.1,1.502]
[1673829021058,0.52754458,1546.3,1546.1,1.502]
[1673829021491,0.04224458,1546.3,1546.1,1.502]
[1673829021804,0.04224458,1546.3,1546.0,1.494]
[1673829022027,0.04224458,1546.3,1545.8,8.08499111]
[1673829022207,0.04224458,1546.3,1545.9,1.03849911]
[1673829022423,0.04224458,1546.3,1545.9,0.80849911]
[1673829022908,14.47636458,1546.3,1545.8,0.12816111]
[1673829023208,13.93380477,1546.3,1545.8,0.12816111]
[1673829023369,16.93380477,1546.3,1545.8,0.12816111]
[1673829023574,17.41910477,1546.3,1545.8,0.06569261]
[1673829023789,16.46166458,1546.3,1545.8,0.06569261]
[1673829024219,9.99459458,1546.3,1545.8,1.56769261]
[1673829024430,3.52754458,1546.3,1545.9,1.727]
[1673829024645,3.04224458,1546.3,1545.9,1.727]
[1673829025627,3.04224458,1546.3,1545.9,8.19549]
[1673829026460,3.04224458,1546.3,1545.9,1.727]
[1673829026461,15.97634458,1546.3,1545.9,1.727]
[1673829026725,1.9853,1546.2,1545.8,1.56769261]
[1673829026897,6.95297,1546.2,1545.8,1.56769261]
[1673829027886,0.4853,1546.2,1545.8,14.50575261]
[1673829028097,3.52754458,1546.3,1545.9,0.23]
[1673829028521,9.99470458,1546.3,1545.9,0.23]
[1673829028996,3.52754458,1546.3,1545.9,1.726]
[1673829029305,3.52754458,1546.3,1546.0,1.43059495]
[1673829029520,3.04224458,1546.3,1546.0,2.92759495]
[1673829029731,3.04224458,1546.3,1546.1,0.29275949]
[1673829031155,0.04224458,1546.3,1546.1,0.29275949]
[1673829032527,0.04224458,1546.3,1546.1,1.79475949]
[1673829033261,0.52754458,1546.3,1546.1,0.29275949]
[1673829033456,0.04224458,1546.3,1546.1,0.29275949]
[1673829034838,0.04224458,1546.3,1546.0,7.97005]
[1673829035035,0.04224458,1546.3,1545.9,8.19457]
[1673829038245,0.04224458,1546.3,1546.0,1.5]
[1673829038403,0.04224458,1546.3,1546.1,1.502]
[1673829038824,0.04224458,1546.3,1546.2,1.502]
[1673829039080,0.04224458,1546.3,1546.2,1.6522]
[1673829039712,0.04224458,1546.3,1546.2,16.08612]
[1673829039885,0.04224458,1546.3,1546.2,19.31612]
[1673829040102,0.04224458,1546.3,1546.2,22.27066437]
[1673829040508,0.04224458,1546.3,1546.2,20.81812]
[1673829040942,0.04224458,1546.3,1546.2,19.31612]
[1673829041244,0.04224458,1546.3,1546.2,8.34966]
[1673829043498,0.04224458,1546.3,1546.2,14.81712]
[1673829043861,0.04224458,1546.3,1546.2,16.31312]
[1673829044535,0.0202922,1546.5,1546.3,0.017372]
[1673829044752,0.0202922,1546.5,1546.3,3.3824212]
[1673829044957,0.0202922,1546.5,1546.3,1.749372]
[1673829046134,0.0202922,1546.5,1546.4,1.502]
[1673829046303,0.0202922,1546.5,1546.4,16.16526]
[1673829046518,0.0202922,1546.5,1546.4,17.65226]
[1673829046869,0.0202922,1546.5,1546.4,20.65226]
[1673829047035,0.0202922,1546.5,1546.4,23.43054912]
[1673829047395,0.0202922,1546.5,1546.4,20.42854912]
[1673829048424,0.0202922,1546.5,1546.4,21.87818282]